fUST/lending_fUST_20241105
["ID","MTS","AMOUNT","RATE_DAILY","PERIOD"]
[341321679,1730787947242,-1533.99,0.00033423,3]
[341321680,1730787947266,-500.25,0.00033696,3]
[341321681,1730787947291,-2062.52,0.00033696,3]
[341321682,1730787947313,-500.0,0.00033696,3]
[341321683,1730787947335,-500.0,0.00033696,3]
[341321684,1730787947357,-500.0,0.00033696,3]
[341321685,1730787947379,-628.84,0.00033696,3]
[341321686,1730787947404,-500.0,0.00033696,3]
[341321687,1730787947426,-500.0,0.00033697,3]
[341321688,1730787947447,-764.26,0.00033697,3]
[341321689,1730787947469,-1533.99,0.00033697,3]
[341321690,1730787947491,-500.25,0.0003397,3]
[341321691,1730787947515,-2062.52,0.0003397,3]
[341321692,1730787947540,-500.0,0.0003397,3]
[341321693,1730787947561,-500.0,0.0003397,3]
[341321694,1730787947582,-500.0,0.0003397,3]
[341321695,1730787947606,-628.84,0.0003397,3]
[341321696,1730787947630,-500.0,0.0003397,3]
[341321697,1730787947652,-500.0,0.00033971,3]
[341321698,1730787947673,-764.26,0.00033971,3]
[341321699,1730787947694,-1533.99,0.00033971,3]
[341321700,1730787947718,-1023.16,0.00033972,120]
[341321701,1730787947739,-500.0,0.00033999,3]
[341321702,1730787947761,-386.31062201,0.00033999,3]
[341321703,1730787947782,-500.0,0.00033999,3]
[341321704,1730787947803,-500.0,0.00033999,3]
[341321705,1730787947826,-568.42693226,0.00033999,3]
[341321706,1730787947848,-500.0,0.00033999,3]
[341321707,1730787947873,-500.25,0.00034244,3]
[341321708,1730787947898,-2062.52,0.00034244,3]
[341321709,1730787947921,-500.0,0.00034244,3]
[341321710,1730787947944,-500.0,0.00034244,3]
[341321711,1730787947966,-500.0,0.00034244,3]
[341321712,1730787947988,-628.84,0.00034244,3]
[341321713,1730787948010,-500.0,0.00034245,3]
[341321714,1730787948035,-764.26,0.00034245,3]
[341321715,1730787948056,-1533.99,0.00034245,3]
[341321716,1730787948079,-545.46763794,0.00034273,3]
[341321717,1730787948101,-500.0,0.00034273,3]
[341321718,1730787948125,-500.25,0.00034518,3]
[341321719,1730787948151,-2062.52,0.00034518,3]
[341321720,1730787948174,-500.0,0.00034518,3]
[341321721,1730787948198,-379.58285182,0.00034518,3]
[341321722,1730787948221,-475.47450202,0.00034518,3]
[341321723,1730787948244,-232.3353421,0.00034518,3]
[341321726,1730788028089,-169.0773393,0.0003,2]
[341321727,1730788032261,-117.9226607,0.0003,2]
[341321728,1730788032283,-132.60755661,0.00030407,2]
[341321730,1730788050087,-265.39244339,0.00030407,2]
[341321731,1730788050110,-500.0,0.00030408,3]
[341321732,1730788050134,-500.0,0.00030408,3]
[341321733,1730788050159,-687.51,0.00030408,3]
[341321734,1730788050183,-500.0,0.00030408,3]
[341321735,1730788050211,-339.72999356,0.00030408,2]
[341321795,1730788238614,-1789.3418621,0.00029305,2]
[341321796,1730788238624,-4660.27000644,0.00030408,2]
[341321797,1730788238633,-500.0,0.00030408,3]
[341321798,1730788238645,-1095.8,0.00030408,3]
[341321799,1730788238654,-687.51,0.00030682,3]
[341321800,1730788238663,-500.0,0.00030682,3]
[341321801,1730788238672,-500.0,0.00030682,3]
[341321802,1730788238682,-5000.0,0.00030682,2]
[341321803,1730788238692,-500.0,0.00030682,3]
[341321805,1730788238797,-2620.54,0.00030682,3]
[341321806,1730788238811,-500.0,0.00030682,3]
[341321807,1730788238821,-117.78428449,0.00030682,3]
[341321808,1730788239009,-978.01571551,0.00030682,3]
[341321809,1730788239018,-687.51,0.00030956,3]
[341321810,1730788239027,-500.0,0.00030956,3]
[341321811,1730788239037,-500.0,0.00030956,3]
[341321812,1730788239046,-500.0,0.00030956,3]
[341321813,1730788239055,-2620.54,0.00030956,3]
[341321814,1730788239065,-500.0,0.00030956,3]
[341321815,1730788239075,-1095.8,0.00030956,3]
[341321816,1730788239085,-500.0,0.00031228,3]
[341321817,1730788239094,-500.0,0.00031228,3]
[341321818,1730788239104,-5000.0,0.00031229,2]
[341321819,1730788239114,-687.51,0.0003123,3]
[341321820,1730788239123,-500.0,0.0003123,3]
[341321821,1730788239132,-500.0,0.0003123,3]
[341321822,1730788239142,-2620.54,0.0003123,3]
[341321823,1730788239151,-500.0,0.0003123,3]
[341321824,1730788239161,-1095.8,0.0003123,3]
[341321825,1730788239170,-500.0,0.00031502,3]
[341321826,1730788239179,-500.0,0.00031502,3]
[341321827,1730788239188,-687.51,0.00031504,3]
[341321828,1730788239197,-500.0,0.00031504,3]
[341321829,1730788239206,-500.0,0.00031504,3]
[341321830,1730788239216,-2620.54,0.00031504,3]
[341321831,1730788239226,-500.0,0.00031504,3]
[341321832,1730788239235,-1095.8,0.00031504,3]
[341321833,1730788239245,-500.0,0.00031776,3]
[341321834,1730788239254,-413.37,0.00031776,3]
[341321835,1730788239263,-5000.0,0.00031777,2]
[341321836,1730788239272,-687.51,0.00031778,3]
[341321837,1730788239281,-417.5169861,0.00031778,3]
[341321838,1730788239294,-82.4830139,0.00031778,3]
[341321839,1730788239303,-174.6069861,0.00031778,3]
[341321840,1730788239314,-319.2398709,0.00031778,3]
[341321851,1730788241722,-6.153143,0.00031778,3]
[341321852,1730788241732,-2620.54,0.00031778,3]
[341321853,1730788241742,-500.0,0.00031778,3]
[341321854,1730788241751,-1095.8,0.00031778,3]
[341321855,1730788241760,-500.0,0.0003205,3]
[341321856,1730788241770,-687.51,0.00032052,3]
[341321857,1730788241779,-500.0,0.00032052,3]
[341321858,1730788241788,-2620.54,0.00032052,3]
[341321859,1730788241798,-500.0,0.00032052,3]
[341321860,1730788241807,-1095.8,0.00032052,3]
[341321861,1730788241818,-500.0,0.00032324,3]
[341321862,1730788241827,-5000.0,0.00032325,2]
[341321863,1730788241837,-687.51,0.00032326,3]
[341321864,1730788241846,-252.0,0.00032326,3]
[341321865,1730788241856,-2620.54,0.00032326,3]
[341321866,1730788241865,-502.37,0.00032326,3]
[341321867,1730788241874,-1095.8,0.00032326,3]
[341321868,1730788241883,-500.0,0.00032598,3]
[341321869,1730788241892,-77.938916,0.000326,3]
[341321870,1730788241928,-609.571084,0.000326,3]
[341321871,1730788241938,-2620.54,0.000326,3]
[341321872,1730788241947,-1095.8,0.000326,3]
[341321873,1730788241956,-500.0,0.00032872,3]
[341321874,1730788241966,-5000.0,0.00032873,2]
[341321875,1730788241975,-687.51,0.00032874,3]
[341321876,1730788241984,-2620.54,0.00032874,3]
[341321877,1730788241993,-1095.8,0.00032874,3]
[341321878,1730788242003,-153.0,0.0003304,2]
[341321879,1730788242012,-153.0,0.00033049,2]
[341321880,1730788242021,-500.0,0.00033146,3]
[341321881,1730788242030,-687.51,0.00033148,3]
[341321882,1730788242038,-2620.54,0.00033148,3]
[341321883,1730788242048,-1095.8,0.00033148,3]
[341321884,1730788242058,-698.25,0.00033412,10]
[341321885,1730788242067,-500.0,0.0003342,3]
[341321886,1730788242077,-5000.0,0.00033421,120]
[341321887,1730788242086,-687.51,0.00033422,3]
[341321888,1730788242095,-2620.54,0.00033422,3]
[341321889,1730788242105,-1095.8,0.00033422,3]
[341321890,1730788242115,-988.05,0.000336,2]
[341321891,1730788242124,-84099.02333508,0.00033651,5]
[341321892,1730788242139,-1025.13938641,0.00033651,5]
[341321893,1730788242149,-46898.44266105,0.00033651,5]
[341321894,1730788242159,-500.0,0.00033694,3]
[341321895,1730788242168,-687.51,0.00033696,3]
[341321896,1730788242177,-2620.54,0.00033696,3]
[341321897,1730788242186,-1095.8,0.00033696,3]
[341321898,1730788242195,-500.0,0.00033832,5]
[341321899,1730788242205,-487.10149685,0.00033871,2]
[341321900,1730788242214,-427.3446579,0.00033968,3]
[341321901,1730788242223,-687.51,0.0003397,3]
[341321902,1730788242232,-5000.0,0.0003397,120]
[341321903,1730788242241,-2620.54,0.0003397,3]
[341321904,1730788242250,-1095.8,0.0003397,3]
[341321905,1730788242259,-999.0,0.00033972,120]
[341321906,1730788242269,-500.0,0.00033999,3]
[341321907,1730788242278,-500.0,0.00033999,3]
[341321908,1730788242286,-575.24,0.00033999,3]
[341321909,1730788242296,-687.51,0.00034244,3]
[341321910,1730788242305,-2620.54,0.00034244,3]
[341321911,1730788242315,-1095.8,0.00034244,3]
[341321912,1730788242324,-5000.0,0.00034272,120]
[341321913,1730788242332,-500.0,0.00034273,3]
[341321914,1730788242342,-500.0,0.00034273,3]
[341321915,1730788242355,-575.24,0.00034273,3]
[341321916,1730788242365,-687.51,0.00034518,3]
[341321917,1730788242374,-2620.54,0.00034518,3]
[341321918,1730788242384,-1095.8,0.00034518,3]
[341321919,1730788242393,-500.0,0.00034547,3]
[341321920,1730788242402,-602.88,0.00034547,3]
[341321921,1730788242411,-500.0,0.00034547,3]
[341321922,1730788242420,-575.24,0.00034547,3]
[341321923,1730788242429,-687.51,0.00034792,3]
[341321924,1730788242439,-2620.54,0.00034792,3]
[341321925,1730788242447,-1095.8,0.00034792,3]
[341321926,1730788242457,-5000.0,0.0003482,120]
[341321927,1730788242466,-500.0,0.00034821,3]
[341321928,1730788242475,-500.0,0.00034821,3]
[341321929,1730788242484,-575.24,0.00034821,3]
[341321930,1730788242494,-999.0,0.00034931,120]
[341321931,1730788242503,-687.51,0.00035066,3]
[341321932,1730788242512,-2620.54,0.00035066,3]
[341321933,1730788242521,-1095.8,0.00035066,3]
[341321934,1730788242531,-167.5520572,0.00035085,2]
[341321935,1730788242541,-500.0,0.00035095,3]
[341321936,1730788242550,-575.24,0.00035095,3]
[341321937,1730788242559,-1000.0,0.00035201,5]
[341321938,1730788242568,-687.51,0.0003534,3]
[341321939,1730788242577,-5000.0,0.0003534,120]
[341321940,1730788242586,-2620.54,0.0003534,3]
[341321941,1730788242595,-1095.8,0.0003534,3]
[341321942,1730788242608,-500.0,0.00035369,3]
[341321943,1730788242617,-575.24,0.00035369,3]
[341321944,1730788242626,-2620.54,0.00035613,3]
[341321945,1730788242635,-687.51,0.00035614,3]
[341321946,1730788242646,-1095.8,0.00035614,3]
[341321947,1730788242655,-500.0,0.00035643,3]
[341321948,1730788242664,-575.24,0.00035643,3]
[341321949,1730788242673,-2620.54,0.00035887,3]
[341321950,1730788242683,-687.51,0.00035888,3]
[341321951,1730788242692,-5000.0,0.00035888,120]
[341321952,1730788242700,-1095.8,0.00035888,3]
[341321953,1730788242709,-999.0,0.0003589,120]
[341321954,1730788242720,-500.0,0.00035917,3]
[341321955,1730788242730,-575.24,0.00035917,3]
[341321956,1730788242739,-2620.54,0.00036161,3]
[341321957,1730788242748,-687.51,0.00036162,3]
[341321958,1730788242757,-1095.8,0.00036162,3]
[341321959,1730788242766,-500.0,0.00036191,3]
[341321960,1730788242843,-575.24,0.00036191,3]
[341321961,1730788242862,-5000.0,0.00036435,120]
[341321962,1730788242871,-2620.54,0.00036435,3]
[341321963,1730788242880,-687.51,0.00036436,3]
[341321964,1730788242889,-1095.8,0.00036436,3]
[341321966,1730788242899,-500.0,0.00036465,3]
[341321967,1730788242909,-575.24,0.00036465,3]
[341321968,1730788242918,-2620.54,0.00036709,3]
[341321969,1730788242927,-687.60532113,0.0003671,3]
[341321970,1730788242936,-1095.94,0.0003671,3]
[341321971,1730788242945,-500.0,0.00036739,3]
[341321972,1730788242955,-575.24,0.00036739,3]
[341321973,1730788242964,-167.5520572,0.00036789,2]
[341321974,1730788242974,-999.0,0.00036849,120]
[341321975,1730788242983,-2620.62055281,0.00036983,3]
[341321976,1730788242993,-5000.0,0.00037012,120]
[341321977,1730788243002,-500.0,0.00037013,3]
[341321978,1730788243011,-575.24,0.00037013,3]
[341321979,1730788243021,-154.37483723,0.00037171,20]
[341321981,1730788243030,-500.0,0.00037287,3]
[341321982,1730788243039,-575.24,0.00037287,3]
[341321984,1730788243049,-113958.64865377,0.000375,60]
[341322009,1730788243476,-581.87,0.00033641,10]
[341322011,1730788243486,-60123.01392099,0.000375,60]
[341322017,1730788243558,-234913.61171549,0.000375,60]
[341322018,1730788243567,-151.0,0.000375,14]
[341322019,1730788243577,-151.0,0.000375,14]
[341322020,1730788243585,-151.0,0.000375,14]
[341322021,1730788243595,-191.968041,0.000375,14]
[341322022,1730788243607,-151.0,0.000375,14]
[341322023,1730788243616,-151.0,0.000375,14]
[341322024,1730788243625,-378.34,0.00037561,3]
[341322025,1730788243634,-575.24,0.00037561,3]
[341322027,1730788243645,-1500.0,0.00037706,5]
[341322029,1730788243656,-999.0,0.00037808,120]
[341322030,1730788243665,-575.24,0.00037835,3]
[341322031,1730788243674,-500.0,0.00037924,43]
[341322032,1730788243684,-575.24,0.00038109,3]
[341322033,1730788243694,-5000.0,0.00038198,120]
[341322034,1730788243704,-4701.45,0.00038199,120]
[341322035,1730788243713,-152.284235,0.000382,14]
[341322036,1730788243724,-151.32196,0.000382,14]
[341322037,1730788243734,-162.582395,0.000382,14]
[341322039,1730788243744,-151.0,0.000382,14]
[341322041,1730788243753,-500.0,0.00038356,2]
[341322043,1730788243762,-156.484597,0.00038383,14]
[341322045,1730788243772,-575.24,0.00038383,3]
[341322046,1730788243781,-167.5520572,0.00038493,2]
[341322047,1730788243791,-151.0,0.00038657,14]
[341322048,1730788243800,-151.0,0.00038657,14]
[341322049,1730788243810,-575.24,0.00038657,3]
[341322050,1730788243819,-999.0,0.00038767,120]
[341322051,1730788243828,-575.24,0.00038931,3]
[341322052,1730788243838,-278.0,0.00039,17]
[341322053,1730788243850,-12252.64801474,0.00039106,2]
[341322054,1730788243859,-575.24,0.00039205,3]
[341322055,1730788243868,-501.31010198,0.00039233,5]
[341322056,1730788243878,-500.92065224,0.00039233,5]
[341322057,1730788243888,-500.0,0.00039233,5]
[341322058,1730788243897,-160.33909661,0.00039233,5]
[341322059,1730788243907,-575.24,0.00039479,3]
[341322060,1730788243916,-150.0,0.000395,120]
[341322061,1730788243926,-205662.21250518,0.00039501,2]
[341322062,1730788243935,-152.233632,0.00039501,14]
[341322063,1730788243944,-151.0,0.00039501,14]
[341322064,1730788243954,-152.56608,0.00039501,14]
[341322065,1730788243963,-151.0,0.00039501,14]
[341322066,1730788243972,-151.0,0.00039501,14]
[341322067,1730788243981,-151.0,0.00039501,14]
[341322068,1730788243991,-1000.1,0.000396,120]
[341322069,1730788244001,-9511.11274404,0.000397,2]
[341322070,1730788244010,-999.0,0.00039726,120]
[341322071,1730788244019,-575.24,0.00039753,3]
[341322072,1730788244029,-21163.02632419,0.000398,14]
[341322073,1730788244038,-53729.11602759,0.000398,15]
[341322074,1730788244047,-161.96,0.000398,120]
[341322075,1730788244056,-152.874451,0.000398,14]
[341322076,1730788244066,-500.0,0.000398,2]
[341322077,1730788244075,-151.0,0.000398,14]
[341322078,1730788244085,-156.816932,0.000398,14]
[341322079,1730788244094,-151.0,0.000398,14]
[341322080,1730788244105,-151.0,0.000398,14]
[341322081,1730788244114,-151.0,0.000398,14]
[341322082,1730788244124,-151.0,0.000398,14]
[341322083,1730788244134,-265.984984,0.000398,14]
[341322084,1730788244143,-151.0,0.000398,14]
[341322085,1730788244154,-503.15333057,0.00039873,5]
[341322086,1730788244168,-1034.48216822,0.0003989,120]
[341322087,1730788244184,-1352.0,0.00039898,34]
[341322088,1730788244199,-3071.854815,0.000399,30]
[341322089,1730788244213,-3000.0,0.000399,120]
[341322090,1730788244233,-416487.56175523,0.000399,30]
[341322105,1730788246542,-500.0,0.00030408,3]
[341322106,1730788246555,-160.13322502,0.000399,30]
[341322114,1730788967988,161.524876,0.00013973,2]
[341322127,1730789230105,-300.0,0.00028252,2]
[341322128,1730789230145,-529.0,0.00028253,2]
[341322129,1730789230172,-1140.0,0.00028253,2]
[341322130,1730789230197,-2394.0,0.00028253,2]
[341322131,1730789230221,-169.50675,0.0003,2]
[341322132,1730789230250,-500.0,0.00031228,3]
[341322133,1730789230276,-500.0,0.00031228,3]
[341322134,1730789230305,-500.0,0.00031252,2]
[341322135,1730789230335,-500.0,0.00031252,2]
[341322136,1730789230359,-202.97427912,0.00031252,2]
[341322137,1730789230386,-500.0,0.00031252,2]
[341322138,1730789230409,-551.51577513,0.00031252,2]
[341322139,1730789230431,-500.0,0.00031252,2]
[341322140,1730789230458,-498.18,0.00031253,2]
[341322141,1730789230482,-128.1800412,0.00031253,2]
[341322142,1730789252120,-215.66801212,0.000303,5]
[341322194,1730789443856,-150.844,0.00028253,2]
[341322196,1730789443867,-297.31,0.00028253,2]
[341322198,1730789443877,-400.0,0.00031252,2]
[341322199,1730789443887,-1010.8199588,0.00031253,2]
[341322200,1730789443897,-2394.0,0.00031253,2]
[341322201,1730789443906,-150.0,0.00031253,2]
[341322202,1730789443916,-321.11474844,0.00031502,3]
[341322203,1730789443925,-500.0,0.00031502,3]
[341322204,1730789443934,-500.0,0.00031776,3]
[341322205,1730789443943,-500.0,0.0003205,3]
[341322206,1730789443952,-500.0,0.00032324,3]
[341322207,1730789443962,-171.9198373,0.00032435,2]
[341322208,1730789443971,-500.0,0.00032598,3]
[341322209,1730789443980,-500.0,0.00032872,3]
[341322210,1730789443990,-553.78,0.00033146,3]
[341322211,1730789443999,-500.0,0.0003342,7]
[341322212,1730789444008,-167.247924,0.00033469,120]
[341322213,1730789444018,-359.0,0.00033639,2]
[341322214,1730789444028,-663.58559903,0.00033694,2]
[341322215,1730789444037,-500.0,0.00033699,3]
[341322216,1730789444048,-500.0,0.00033699,3]
[341322217,1730789444057,-186.25715341,0.00033699,120]
[341322218,1730789444066,-889.24,0.000337,2]
[341322219,1730789444076,-500.0,0.00033973,3]
[341322221,1730789444086,-500.0,0.00034243,3]
[341322223,1730789444096,-500.0,0.00034247,3]
[341322225,1730789444106,-500.0,0.00034517,3]
[341322226,1730789444116,-500.0,0.00034521,3]
[341322227,1730789444125,-500.0,0.00034795,3]
[341322228,1730789444134,-500.0,0.00035069,3]
[341322229,1730789444144,-460.02,0.00035343,3]
[341322230,1730789444154,-500.0,0.00035778,3]
[341322231,1730789444163,-523.73,0.00035778,3]
[341322232,1730789444173,-546.40354193,0.00036052,3]
[341322233,1730789444184,-523.73,0.00036052,3]
[341322234,1730789444195,-523.73,0.00036326,3]
[341322235,1730789444205,-523.73,0.000366,3]
[341322236,1730789444215,-523.73,0.00036874,3]
[341322237,1730789444228,-523.73,0.00037148,3]
[341322238,1730789444238,-523.73,0.00037422,3]
[341322239,1730789444248,-523.73,0.00037696,3]
[341322240,1730789444258,-523.73,0.0003797,3]
[341322241,1730789444268,-14353.78896,0.00038,2]
[341322243,1730789444279,-266.66666668,0.000381,2]
[341322245,1730789444289,-10068.5906794,0.000382,109]
[341322247,1730789444298,-10068.59067936,0.000382,109]
[341322249,1730789444309,-10068.59067936,0.000382,109]
[341322251,1730789444319,-523.73,0.00038244,3]
[341322253,1730789444328,-500.0,0.00038356,2]
[341322255,1730789444338,-523.73,0.00038518,3]
[341322257,1730789444347,-523.73,0.00038792,3]
[341322259,1730789444356,-10068.59067936,0.000389,114]
[341322261,1730789444369,-266.66666666,0.0003895,2]
[341322263,1730789444379,-158.51100237,0.00039,4]
[341322265,1730789444388,-523.73,0.00039066,3]
[341322267,1730789444397,-523.73,0.0003934,3]
[341322269,1730789444407,-1000.0,0.000394,120]
[341322271,1730789444420,-523.73,0.00039614,3]
[341322273,1730789444430,-150.01,0.00039799,2]
[341322275,1730789444439,-356.99044128,0.00039799,2]
[341322278,1730789444449,-500.0,0.000398,2]
[341322280,1730789444459,-266.66666666,0.000398,2]
[341322282,1730789444468,-523.73,0.00039888,3]
[341322284,1730789444477,-314.66,0.0003989,10]
[341322286,1730789444486,-432.45,0.0003989,10]
[341322287,1730789444496,-360.37,0.0003989,10]
[341322288,1730789444506,-392.42624644,0.00039899,31]
[341322289,1730789444516,-373.71591513,0.00039899,31]
[341322290,1730789444525,-385.25182772,0.00039899,31]
[341322291,1730789444534,-407.07070732,0.00039899,31]
[341322292,1730789444544,-404.0260628,0.00039899,31]
[341322293,1730789444554,-332.18116433,0.00039899,31]
[341322294,1730789444563,-999.0,0.00039899,120]
[341322295,1730789444572,-6162.15069222,0.000399,30]
[341322296,1730789444605,-500.0,0.00034791,3]
[341322297,1730789444618,-484.02,0.00035065,3]
[341322298,1730789444628,-6581.85338301,0.000399,30]
[341322303,1730789492634,150.84293585,0.00024658,2]
[341322304,1730789993873,161.039887,0.00013973,2]
[341322307,1730790427102,-176.38141572,0.0003,2]
[341322308,1730790430125,-18.61858428,0.0003,2]
[341322309,1730790430147,-192.08641196,0.00032161,2]
[341322310,1730790430168,-19.54729576,0.00032261,2]
[341322311,1730790454090,-147.35997124,0.00032261,2]
[341322312,1730790454112,-201.78876,0.00032261,2]
[341322313,1730790454133,-177.27132,0.00032261,2]
[341322314,1730790454160,-159.256922,0.00032261,2]
[341322315,1730790454185,-191.838763,0.00033205,2]
[341322316,1730790454206,-400.0,0.00033603,2]
[341322317,1730790454228,-400.0,0.00033603,2]
[341322318,1730790454249,-3000.0,0.00033604,2]
[341322319,1730790454270,-733.09389859,0.00033619,2]
[341322320,1730790551091,-627.05403741,0.00033619,2]
[341322321,1730790551113,-166.433038,0.00033694,2]
[341322322,1730790551134,-800.32,0.000337,2]
[341322323,1730790551157,-159.256922,0.00033874,2]
[341322324,1730790551180,-500.0,0.00033878,2]
[341322325,1730790551201,-634.27860436,0.00033878,2]
[341322326,1730790551227,-6221.9102079,0.00033879,2]
[341322327,1730790551254,-153.0,0.00034023,2]
[341322328,1730790551275,-153.0,0.0003403,2]
[341322329,1730790551295,-153.0,0.00034037,2]
[341322330,1730790551316,-153.0,0.00034037,2]
[341322331,1730790569089,720.28,0.000337,2]
[341322332,1730790571156,-166.433038,0.00035064,2]
[341322333,1730790571181,-500.0,0.00035135,3]
[341322334,1730790571205,-500.0,0.00035135,3]
[341322335,1730790571226,-168.0,0.00035139,2]
[341322336,1730790571249,-500.0,0.00035261,3]
[341322337,1730790571272,-427.93173514,0.00035342,3]
[341322338,1730790603579,500.0,0.0003,120]
[341322384,1730790631810,-500.0,0.00035139,3]
[341322386,1730790631819,-500.0,0.00035139,3]
[341322388,1730790631828,-500.0,0.00035342,3]
[341322390,1730790631837,-218.6873858,0.00035409,3]
[341322392,1730790631846,-500.0,0.00035413,3]
[341322394,1730790631859,-182.61779906,0.00035413,3]
[341322396,1730790631868,-500.0,0.00035535,3]
[341322397,1730790631877,-500.0,0.00035616,3]
[341322399,1730790631886,-500.0,0.00035687,3]
[341322401,1730790631897,-500.0,0.00035735,3]
[341322403,1730790631906,-500.0,0.00035809,3]
[341322405,1730790631915,-500.0,0.0003589,3]
[341322407,1730790631925,-500.0,0.00035961,3]
[341322409,1730790631934,-500.0,0.00036009,3]
[341322410,1730790631944,-500.0,0.00036051,3]
[341322412,1730790631953,-500.0,0.00036051,3]
[341322413,1730790631962,-500.0,0.00036083,3]
[341322414,1730790631971,-500.0,0.00036164,3]
[341322415,1730790631979,-500.0,0.00036235,3]
[341322417,1730790631988,-500.0,0.00036283,3]
[341322419,1730790631998,-500.0,0.00036324,3]
[341322420,1730790632007,-500.0,0.00036325,3]
[341322421,1730790632016,-500.0,0.00036325,3]
[341322422,1730790632025,-500.0,0.00036357,3]
[341322424,1730790632034,-500.0,0.00036438,3]
[341322426,1730790632043,-500.0,0.00036509,3]
[341322428,1730790632053,-500.0,0.00036557,3]
[341322429,1730790632062,-500.0,0.00036598,3]
[341322430,1730790632071,-500.0,0.00036599,3]
[341322431,1730790632080,-500.0,0.00036599,3]
[341322432,1730790632089,-508.91595287,0.00036631,3]
[341322433,1730790632099,-336.0,0.00036712,2]
[341322434,1730790632107,-332.89460801,0.00036712,3]
[341322461,1730790638249,-167.10539199,0.00036712,3]
[341322462,1730790638258,-154.83460801,0.00036783,3]
[341322510,1730790640038,-345.16539199,0.00036783,3]
[341322511,1730790640048,-153.67599288,0.00036831,3]
[341322512,1730790640060,-346.32400712,0.00036831,3]
[341322513,1730790640070,-172.89655027,0.00036872,3]
[341322514,1730790640079,-80.90581828,0.00036873,3]
[341322515,1730790640091,-419.09418172,0.00036873,3]
[341322516,1730790640099,-500.0,0.00036873,3]
[341322517,1730790640109,-301.36518026,0.00036986,3]
[341322518,1730790640120,-198.63481974,0.00036986,3]
[341322519,1730790640129,-500.0,0.00037057,3]
[341322520,1730790640138,-500.0,0.00037105,3]
[341322521,1730790640147,-500.0,0.00037147,3]
[341322522,1730790640156,-500.0,0.0003726,3]
[341322523,1730790640166,-539.72165418,0.00037331,3]
[341322524,1730790640176,-500.0,0.00037379,3]
[341322525,1730790640185,-500.0,0.00037421,3]
[341322526,1730790640194,-500.0,0.00037534,3]
[341322527,1730790640203,-500.0,0.00037653,3]
[341322528,1730790640213,-500.0,0.00037695,3]
[341322529,1730790640222,-500.0,0.00037808,3]
[341322530,1730790640231,-500.0,0.00037927,3]
[341322531,1730790640241,-500.0,0.00037969,3]
[341322532,1730790640250,-143.03421225,0.00038082,3]
[341322545,1730791554101,-165.0,0.0003,2]
[341322546,1730791554123,-165.0,0.00031644,2]
[341322547,1730791554145,-648.26,0.000337,2]
[341322548,1730791554166,-500.0,0.00035139,3]
[341322549,1730791554188,-500.0,0.00035139,3]
[341322550,1730791554210,-89.16000463,0.00035139,3]
[341322551,1730791600094,-159.43094989,0.00034963,16]
[341322552,1730791600117,-42.76478791,0.00035686,2]
[341322553,1730791636152,-243.11533715,0.00036324,3]
[341322554,1730791645100,-256.88466285,0.00036324,3]
[341322555,1730791645123,-500.0,0.00036324,3]
[341322556,1730791645145,-500.0,0.00036324,3]